fUSD/lending_fUSD_20260304
["ID","MTS","AMOUNT","RATE_DAILY","PERIOD"]
[407649002,1772611838933,-1123.556729,0.00017865,2]
[407649003,1772611838943,-1123.556729,0.00017865,2]
[407649004,1772611838952,-25000.0,0.00017874,3]
[407649005,1772611838963,-151.0,0.00017882,2]
[407649006,1772611838972,-25000.0,0.00017882,3]
[407649007,1772611838981,-172.65896273,0.00017882,3]
[407649008,1772611838991,-500.0,0.0001789,2]
[407649009,1772611839000,-25000.0,0.00017891,3]
[407649010,1772611839010,-25000.0,0.000179,3]
[407649011,1772611839020,-4358.00155728,0.000179,2]
[407649012,1772611839030,-313.05680285,0.000179,2]
[407649013,1772611839040,-1065.68640644,0.000179,2]
[407649014,1772611839050,-446.28033982,0.000179,2]
[407649015,1772611839060,-1082.04034606,0.000179,2]
[407649016,1772611839069,-199.65636282,0.000179,3]
[407649017,1772611839082,-1196.35296281,0.000179,2]
[407649018,1772611839092,-150.0,0.00017979,2]
[407649019,1772611839101,-152.96961451,0.0001799,2]
[407649020,1772611839111,-500.0,0.00017998,2]
[407649021,1772611839121,-501.72450365,0.00017999,2]
[407649022,1772611839130,-500.0,0.00017999,2]
[407649023,1772611839140,-508.87556014,0.00017999,2]
[407649024,1772611839149,-146721.8406305,0.00018,2]
[407649025,1772611839171,-1386.35636678,0.00018,2]
[407649026,1772611839187,-1976.09516634,0.00018,2]
[407649027,1772611839199,-476.33151153,0.00018,2]
[407649028,1772611839215,-1257.68700571,0.00018,2]
[407649029,1772611839232,-13376.96685781,0.00018,2]
[407649030,1772611839243,-288.21750338,0.00018,2]
[407649031,1772611839254,-14123.908,0.00018,2]
[407649040,1772611839881,-395.029995,0.00016251,2]
[407649041,1772611840302,-36.412005,0.00016251,2]
[407649042,1772611840312,-11081629.4281259,0.00018,2]
[407649043,1772611840324,-55671.96814987,0.00018,2]
[407649044,1772611840336,-97501.27707805,0.00018,2]
[407649045,1772611840367,-544.2039824,0.00018,2]
[407649046,1772611840382,-18697.09749426,0.00018,2]
[407649047,1772611840394,-44459.1386239,0.00018,2]
[407649048,1772611840407,-253.24101467,0.00018,2]
[407649049,1772611840426,-270.00005,0.00018,2]
[407649054,1772611841254,-278.8,0.00018,2]
[407649055,1772611841267,-2562.60294719,0.00018,2]
[407649071,1772611842929,-1029.93288924,0.00018,2]
[407649072,1772611842989,-7499.28697164,0.00018,2]
[407649074,1772611843002,-3754.523848,0.00018,2]
[407649083,1772611845403,-13203.08324607,0.00018,2]
[407649084,1772611845462,-6550.0,0.00018,2]
[407649085,1772611845474,-407.0,0.00018,2]
[407649086,1772611845485,-2551.51389848,0.00018,2]
[407649087,1772611845518,-390872.67064937,0.00018,2]
[407649088,1772611845785,-741.02210526,0.00018,2]
[407649089,1772611845798,-1629.35103318,0.00018,2]
[407649130,1772612243346,500.0,9.003e-05,2]
[407649131,1772612243855,500.0,9.003e-05,2]
[407649132,1772612244396,500.0,9.003e-05,2]
[407649133,1772612244895,794.4808922,9.003e-05,2]
[407649134,1772612246561,500.0,9.003e-05,2]
[407649135,1772612248633,500.0,9.003e-05,2]
[407649136,1772612249274,500.0,9.003e-05,2]
[407649141,1772612800134,-213.79254518,0.000119,2]
[407649151,1772612851391,7955.18,6.601e-05,2]
[407649152,1772612851551,1456.07666932,6.948e-05,2]
[407649153,1772612851574,6499.10333068,6.948e-05,2]
[407649154,1772612851757,4941.80540425,7.296e-05,2]
[407649155,1772612950078,-3013.37459575,7.296e-05,2]
[407649156,1772612950100,-506.0,7.642e-05,2]
[407649157,1772612950126,-1130.04508825,7.643e-05,2]
[407649161,1772613031770,-6825.13491175,7.643e-05,2]
[407649162,1772613031780,-300.0,7.99e-05,2]
[407649167,1772613031790,-1200.0,7.99e-05,2]
[407649168,1772613032060,-300.0,7.99e-05,2]
[407649169,1772613032071,-7955.18,7.991e-05,2]
[407649170,1772613032080,-250.0,8.025e-05,2]
[407649171,1772613032090,-3266.98508825,8.025e-05,2]
[407649172,1772613032102,-1016.30586564,8.025e-05,2]
[407649173,1772613032111,-7955.18,8.338e-05,2]
[407649174,1772613032121,-7955.18,8.686e-05,2]
[407649175,1772613032131,-420.0,8.789e-05,2]
[407649176,1772613032140,-7955.18,9.033e-05,2]
[407649177,1772613032150,-150.0,9.379e-05,2]
[407649178,1772613032159,-7955.18,9.38e-05,2]
[407649179,1772613032169,-250.0,9.64e-05,2]
[407649180,1772613032179,-587.0,9.668e-05,2]
[407649181,1772613032189,-7955.18,9.728e-05,2]
[407649182,1772613032199,-7955.18,0.00010075,2]
[407649183,1772613032209,-255.0,0.00010317,2]
[407649184,1772613032219,-7955.18,0.00010423,2]
[407649185,1772613032228,-823.0,0.00010634,2]
[407649186,1772613032237,-7955.18,0.0001077,2]
[407649187,1772613032246,-7955.18,0.00011118,2]
[407649188,1772613032256,-303.0,0.00011349,2]
[407649189,1772613032265,-7955.18,0.00011465,2]
[407649190,1772613032274,-1152.0,0.00011698,2]
[407649191,1772613032283,-227.1272,0.000118,2]
[407649192,1772613032292,-7955.18,0.00011812,2]
[407649193,1772613032302,-500.0,0.00012,2]
[407649194,1772613032312,-500.0,0.00012,2]
[407649195,1772613032322,-500.0,0.00012,2]
[407649196,1772613032338,-500.0,0.00012,2]
[407649197,1772613032352,-500.0,0.00012,2]
[407649198,1772613032362,-980.12020361,0.00012,2]
[407649199,1772613032372,-500.0,0.00012,2]
[407649200,1772613032382,-500.0,0.00012,2]
[407649201,1772613032392,-500.0,0.00012,2]
[407649202,1772613032402,-500.0,0.00012,2]
[407649203,1772613032413,-150.90522382,0.00012,2]
[407649204,1772613032424,-237.76465158,0.00012,2]
[407649205,1772613032434,-7955.18,0.0001216,2]
[407649206,1772613032444,-210.98,0.00012322,2]
[407649207,1772613032454,-7955.18,0.00012507,2]
[407649208,1772613032465,-7955.18,0.00012855,2]
[407649209,1772613032475,-1613.0,0.00012868,2]
[407649210,1772613032485,-2211.58311308,0.00012939,2]
[407649211,1772613032495,-7955.18,0.00013202,2]
[407649212,1772613032505,-197.194,0.00013328,2]
[407649213,1772613032519,-1142.011,0.00013328,2]
[407649214,1772613032530,-1681.16,0.00013387,2]
[407649215,1772613032539,-4943.67768961,0.000134,2]
[407649216,1772613032549,-500.0,0.000134,2]
[407649217,1772613032559,-151.65365303,0.000135,2]
[407649218,1772613032569,-157.7170475,0.000135,2]
[407649219,1772613032579,-155.47991673,0.000135,2]
[407649220,1772613032590,-7537.47290166,0.000135,2]
[407649221,1772613032604,-1217.34423192,0.000135,2]
[407649222,1772613032614,-240.79592765,0.000135,2]
[407649223,1772613032624,-2502.19871423,0.000135,2]
[407649224,1772613032634,-665.0,0.00013562,2]
[407649225,1772613032643,-200.0,0.00013592,2]
[407649226,1772613032653,-151.0,0.00013592,2]
[407649227,1772613032663,-151.0,0.00013592,2]
[407649228,1772613032673,-500.0,0.00013592,2]
[407649229,1772613032684,-151.0,0.00013592,2]
[407649230,1772613032694,-160.55109637,0.00013592,2]
[407649231,1772613032704,-151.0,0.00013592,2]
[407649232,1772613032713,-151.0,0.00013592,2]
[407649233,1772613032724,-151.0,0.00013592,2]
[407649234,1772613032733,-151.0,0.00013592,2]
[407649235,1772613032743,-151.0,0.00013592,2]
[407649236,1772613032753,-151.0,0.00013592,2]
[407649237,1772613032763,-151.0,0.00013592,2]
[407649238,1772613032773,-151.0,0.00013592,2]
[407649239,1772613032782,-151.0,0.00013592,2]
[407649240,1772613032792,-151.0,0.00013592,2]
[407649241,1772613032802,-258.20521433,0.00013592,2]
[407649242,1772613032813,-4475.08453681,0.00013599,2]
[407649243,1772613032823,-1066.82145095,0.00013599,3]
[407649244,1772613032833,-500.0,0.00013599,2]
[407649245,1772613032843,-500.0,0.00013599,2]
[407649246,1772613032852,-500.0,0.00013599,2]
[407649247,1772613032862,-500.0,0.00013599,2]
[407649248,1772613032872,-500.0,0.00013599,2]
[407649249,1772613032882,-595.45611652,0.00013599,2]
[407649250,1772613032896,-155.0,0.00013599,2]
[407649251,1772613032906,-500.0,0.00013599,2]
[407649252,1772613032916,-29986.90425109,0.000136,2]
[407649253,1772613032929,-100767.12108596,0.000136,2]
[407649254,1772613032941,-93991.89460857,0.000136,2]
[407649255,1772613032974,-2732.10077041,0.000136,2]
[407649256,1772613032986,-1288.21764816,0.000136,2]
[407649258,1772613038262,-176239.84984093,0.000136,2]
[407649259,1772613038372,-1382.06179791,0.000136,2]
[407649357,1772613040040,-825.48384484,0.000136,2]
[407649358,1772613040608,-2092786.36615213,0.000136,2]
[407649359,1772613040617,-488.02148028,0.00013605,2]
[407649360,1772613040627,-500.0,0.00013674,2]
[407649361,1772613040636,-200.0,0.00013705,2]
[407649362,1772613040646,-4943.67768952,0.000139,2]
[407649363,1772613040655,-500.0,0.00013948,2]
[407649364,1772613040665,-2502.19871422,0.00013989,2]
[407649365,1772613040675,-506.0,0.00014,2]
[407649366,1772613040684,-200.0,0.00014204,2]
[407649367,1772613040694,-222.64443696,0.00014204,2]
[407649368,1772613040703,-500.0,0.00014373,2]
[407649369,1772613040713,-500.0,0.00014373,2]
[407649370,1772613040722,-4943.67768952,0.000144,2]
[407649371,1772613040732,-2502.19871422,0.00014478,2]
[407649372,1772613040742,-151.0,0.00014802,2]
[407649373,1772613040751,-174.61919141,0.00014802,2]
[407649374,1772613040761,-693.3919763,0.00014802,2]
[407649375,1772613040770,-1500.0,0.00014834,2]
[407649376,1772613040779,-151.0,0.00014857,2]
[407649377,1772613040789,-719.04747942,0.00014857,2]
[407649378,1772613040798,-4943.67768952,0.000149,2]
[407649379,1772613040808,-154.76383697,0.00014912,2]
[407649380,1772613040817,-745.65223616,0.00014912,2]
[407649381,1772613040826,-503.37044262,0.00014921,2]
[407649382,1772613040835,-1000.0,0.00014921,2]
[407649383,1772613040845,-155.0,0.00014959,2]
[407649384,1772613040854,-2502.19871422,0.00014967,2]
[407649385,1772613040863,-773.2413689,0.00014967,2]
[407649386,1772613040872,-250.0,0.00015,2]
[407649387,1772613040882,-801.85129955,0.00015022,2]
[407649388,1772613040892,-150.0,0.00015054,2]
[407649389,1772613040901,-200.0,0.00015068,2]
[407649390,1772613040910,-831.51979763,0.00015077,2]
[407649391,1772613040920,-5916.64,0.00015129,2]
[407649392,1772613040929,-862.28603014,0.00015132,2]
[407649393,1772613040938,-150.0,0.00015156,2]
[407649394,1772613040948,-150.0,0.00015166,2]
[407649395,1772613040957,-894.19061326,0.00015187,2]
[407649396,1772613040967,-927.27566595,0.00015242,2]
[407649397,1772613040976,-961.58486559,0.00015297,2]
[407649398,1772613040986,-999.99,0.0001531,2]
[407649399,1772613040995,-9999.99,0.0001531,2]
[407649400,1772613041005,-299.99,0.0001531,2]
[407649401,1772613041014,-150.99,0.0001531,2]
[407649402,1772613041024,-181.08010149,0.0001535,2]
[407649403,1772613041033,-997.16350561,0.00015352,2]
[407649404,1772613041043,-4943.67768952,0.000154,2]
[407649405,1772613041052,-2502.19871422,0.00015456,2]
[407649406,1772613041063,-488.02148028,0.00015753,2]
[407649407,1772613041073,-4885.0,0.0001578,2]
[407649408,1772613041082,-1000.0,0.00015784,2]
[407649409,1772613041092,-187.78006525,0.00015898,2]
[407649410,1772613041102,-4943.67768952,0.000159,2]
[407649411,1772613041111,-2502.19871422,0.00015944,2]
[407649412,1772613041120,-4943.67768952,0.000164,2]
[407649413,1772613041130,-299.11451172,0.00016446,2]
[407649414,1772613041140,-492.2,0.0001679,2]
[407649415,1772613041149,-150.0,0.0001683,7]
[407649416,1772613041159,-4943.67768952,0.000169,2]
[407649417,1772613041168,-260.56842108,0.00016923,2]
[407649418,1772613041178,-500.0,0.00016973,2]
[407649419,1772613041187,-300.0,0.00017,2]
[407649420,1772613041197,-1278.0,0.00017001,2]
[407649421,1772613041206,-1212.0,0.00017001,2]
[407649422,1772613041216,-921.0,0.00017001,2]
[407649423,1772613041226,-619.0,0.00017001,2]
[407649424,1772613041235,-1341.0,0.00017001,2]
[407649425,1772613041245,-492.2,0.0001706,2]
[407649426,1772613041255,-492.2,0.0001733,2]
[407649427,1772613041264,-4943.67768952,0.000174,2]
[407649428,1772613041274,-200.0,0.00017419,2]
[407649429,1772613041283,-492.2,0.000176,2]
[407649430,1772613041292,-172.65321166,0.0001764,2]
[407649431,1772613041302,-10000.0,0.0001773,2]
[407649432,1772613041311,-1000.0,0.00017757,2]
[407649433,1772613041321,-83677.50696153,0.0001783,2]
[407649434,1772613041331,-166.66,0.00017838,2]
[407649435,1772613041340,-492.2,0.0001787,2]
[407649436,1772613041349,-155.61952816,0.000179,2]
[407649437,1772613041359,-161.16991848,0.000179,2]
[407649438,1772613041368,-164.92458973,0.000179,2]
[407649439,1772613041378,-163.03157149,0.000179,2]
[407649440,1772613041387,-852.47832811,0.000179,2]
[407649441,1772613041397,-488.02148028,0.000179,2]
[407649442,1772613041407,-4943.67768952,0.000179,2]
[407649443,1772613041416,-31076.0852157,0.00017999,2]
[407649444,1772613041426,-300.0,0.00017999,2]
[407649445,1772613041435,-3550996.59110819,0.00018,2]
[407649467,1772613045679,-257.13704701,0.00013505,2]
[407649478,1772614000160,-250.0,0.0001195,2]
[407649479,1772614000183,-49.40913665,0.00012,2]
[407649481,1772614168077,-179.05,0.00010377,2]
[407649482,1772614168097,-134.2053046,0.00010377,2]
[407649489,1772614231824,-575.68335431,0.00010377,2]
[407649490,1772614231836,-250.0,0.00011188,2]
[407649491,1772614231848,-250.0,0.00011414,2]
[407649492,1772614231858,-770.1855771,0.00012,2]
[407649493,1772614231868,-500.0,0.00012,2]
[407649494,1772614231879,-1200.0,0.00012623,2]
[407649495,1772614231889,-9963.64,0.00012624,2]
[407649496,1772614231899,-1681.1125703,0.00012716,2]
[407649497,1772614231913,-2986.0839807,0.00012716,2]
[407649498,1772614231923,-507.0,0.0001278,2]
[407649499,1772614231933,-20729.71,0.00012781,2]
[407649500,1772614231942,-709.88865891,0.00012833,2]
[407649501,1772614231952,-539.69529738,0.00012833,2]
[407649502,1772614231963,-27861.83167234,0.00012906,2]
[407649503,1772614231974,-4103.23692903,0.00012906,2]
[407649504,1772614231986,-21690.03684788,0.00012906,2]
[407649505,1772614231998,-346024.56410316,0.00012906,2]
[407649506,1772614232009,-1631.14702,0.00012906,2]
[407649519,1772614232197,-704.01030882,0.00012906,2]
[407649531,1772614237836,-904.00026474,0.00012906,2]
[407649532,1772614238258,-243501.79394736,0.00012906,2]
[407649533,1772614238312,-38077.42638284,0.00012906,2]
[407649644,1772614239957,-1815501.95252383,0.00012906,2]
[407649647,1772614239967,-709.88865891,0.00012933,2]
[407649649,1772614239977,-150.0,0.00012997,2]
[407649651,1772614239986,-500.0,0.00012998,2]
[407649653,1772614239996,-151.0,0.00012998,2]
[407649655,1772614240005,-500.0,0.00012998,2]
[407649657,1772614240014,-151.0,0.00012998,2]
[407649659,1772614240024,-500.0,0.00012998,2]
[407649661,1772614240034,-151.0,0.00012998,2]
[407649663,1772614240044,-500.0,0.00012998,2]
[407649666,1772614240054,-151.0,0.00012998,2]
[407649668,1772614240063,-500.0,0.00012998,2]
[407649670,1772614240074,-151.0,0.00012998,2]
[407649672,1772614240084,-431.4814748,0.00012998,2]
[407649674,1772614240094,-151.0,0.00012998,2]
[407649676,1772614240103,-151.0,0.00012998,2]
[407649678,1772614240113,-151.0,0.00012998,2]
[407649680,1772614240123,-151.0,0.00012998,2]
[407649682,1772614240133,-151.0,0.00012998,2]
[407649684,1772614240143,-151.0,0.00012998,2]
[407649686,1772614240153,-253.10427882,0.00012998,2]
[407649688,1772614240162,-151.0,0.00012998,2]
[407649689,1772614240172,-151.0,0.00012998,2]
[407649690,1772614240182,-157.69440394,0.00012998,2]
[407649691,1772614240191,-151.0,0.00012998,2]
[407649692,1772614240201,-151.0,0.00012998,2]
[407649693,1772614240210,-151.0,0.00012998,2]
[407649694,1772614240219,-151.0,0.00012998,2]
[407649695,1772614240230,-151.0,0.00012998,2]
[407649696,1772614240240,-151.0,0.00012998,2]
[407649697,1772614240250,-151.0,0.00012998,2]
[407649698,1772614240261,-151.0,0.00012998,2]
[407649699,1772614240270,-151.0,0.00012998,2]
[407649700,1772614240284,-151.0,0.00012998,2]
[407649701,1772614240295,-151.0,0.00012998,2]
[407649702,1772614240304,-151.0,0.00012998,2]
[407649703,1772614240314,-151.0,0.00012998,2]
[407649704,1772614240323,-151.0,0.00012998,2]
[407649705,1772614240333,-151.0,0.00012998,2]
[407649706,1772614240342,-151.0,0.00012998,2]
[407649707,1772614240351,-151.0,0.00012998,2]
[407649708,1772614240360,-151.0,0.00012998,2]
[407649709,1772614240370,-151.0,0.00012998,2]
[407649710,1772614240379,-151.0,0.00012998,2]
[407649711,1772614240388,-151.0,0.00012998,2]
[407649712,1772614240397,-151.0,0.00012998,2]
[407649713,1772614240407,-151.0,0.00012998,2]
[407649714,1772614240416,-151.0,0.00012998,2]
[407649715,1772614240426,-151.0,0.00012998,2]
[407649716,1772614240436,-210.40279201,0.00012998,2]
[407649717,1772614240446,-151.0,0.00012998,2]
[407649718,1772614240455,-151.0,0.00012998,2]
[407649719,1772614240466,-151.0,0.00012998,2]
[407649720,1772614240475,-151.0,0.00012998,2]
[407649721,1772614240485,-151.0,0.00012998,2]
[407649722,1772614240494,-12133.86,0.00013,2]
[407649723,1772614240504,-804.7453968,0.00013001,2]
[407649724,1772614240513,-15300.75,0.00013006,2]
[407649725,1772614240523,-500.0,0.00013088,2]
[407649726,1772614240536,-1600.0,0.00013113,2]
[407649727,1772614240545,-913.0,0.00013134,2]
[407649728,1772614240554,-539.69529737,0.00013154,2]
[407649729,1772614240564,-1362.4,0.000132,2]
[407649730,1772614240574,-250.0,0.000132,2]
[407649731,1772614240583,-500.0,0.0001323,2]
[407649732,1772614240592,-500.0,0.00013272,2]
[407649733,1772614240601,-157.0,0.00013328,2]
[407649734,1772614240610,-537.0,0.00013354,2]
[407649735,1772614240619,-168.78,0.00013398,2]
[407649736,1772614240628,-1000.0,0.00013436,2]
[407649737,1772614240637,-6076.36,0.00013437,2]
[407649738,1772614240647,-539.69529737,0.00013474,2]
[407649739,1772614240657,-159.0,0.00013505,3]
[407649740,1772614240666,-500.0,0.00013546,2]
[407649741,1772614240676,-672.0,0.00013557,2]
[407649742,1772614240685,-3439.08,0.00013574,2]
[407649743,1772614240695,-1000.0,0.000136,30]
[407649744,1772614240704,-1000.0,0.000136,30]
[407649745,1772614240713,-192.46,0.00013699,2]
[407649746,1772614240723,-1000.0,0.000137,30]
[407649747,1772614240732,-250.0,0.00013711,2]
[407649748,1772614240742,-1000.0,0.000138,30]
[407649749,1772614240751,-608.00046403,0.0001382,2]
[407649750,1772614240760,-1680.0,0.00013885,2]
[407649751,1772614240770,-1000.0,0.000139,30]
[407649752,1772614240780,-150.0,0.00013989,2]
[407649753,1772614240789,-229.26642329,0.00013989,2]
[407649754,1772614240798,-150.0,0.00013989,2]
[407649755,1772614240807,-150.0,0.00013989,2]
[407649756,1772614240817,-200.0,0.0001399,2]
[407649757,1772614240826,-222.64443696,0.0001399,2]
[407649758,1772614240835,-1000.0,0.00014,30]
[407649759,1772614240844,-486.77,0.00014,30]
[407649760,1772614240854,-497.45179468,0.00014,2]
[407649761,1772614240865,-506.0,0.00014,2]
[407649762,1772614240874,-150.0,0.00014044,2]
[407649763,1772614240884,-150.0,0.00014044,2]
[407649764,1772614240893,-150.0,0.00014044,2]
[407649765,1772614240904,-3298.62709109,0.00014098,2]
[407649766,1772614240914,-200.0,0.00014099,2]
[407649767,1772614240923,-227.67125964,0.00014099,2]
[407649768,1772614240934,-200.0,0.00014099,2]
[407649769,1772614240943,-255.0,0.00014102,2]
[407649770,1772614240953,-2500.0,0.00014173,2]
[407649771,1772614240962,-192.67858377,0.00014173,2]
[407649772,1772614240971,-5686.09457382,0.00014198,2]
[407649773,1772614240981,-3431.20494078,0.00014198,2]
[407649774,1772614240990,-206.39650938,0.00014198,2]
[407649775,1772614240999,-259.68647954,0.00014199,2]
[407649776,1772614241009,-152.96961452,0.00014263,2]
[407649778,1772614241018,-536.93,0.00014264,2]
[407649779,1772614241028,-151.0,0.0001427,2]
[407649781,1772614241037,-151.0,0.0001427,2]
[407649783,1772614241047,-281.43286608,0.00014273,2]
[407649784,1772614241056,-500.0,0.00014373,2]
[407649785,1772614241066,-163.13314249,0.00014373,2]
[407649786,1772614241075,-500.0,0.00014373,2]
[407649787,1772614241084,-501.11845623,0.00014373,2]
[407649788,1772614241093,-500.0,0.00014373,2]
[407649789,1772614241103,-500.0,0.00014373,2]
[407649790,1772614241112,-500.0,0.00014373,2]
[407649791,1772614241122,-500.0,0.00014373,2]
[407649792,1772614241131,-500.0,0.00014373,2]
[407649793,1772614241140,-503.23290676,0.00014373,2]
[407649794,1772614241150,-318.03151824,0.00014373,2]
[407649795,1772614241159,-500.0,0.00014373,2]
[407649796,1772614241168,-164.67084633,0.00014373,2]
[407649797,1772614241178,-500.0,0.00014373,2]
[407649798,1772614241188,-341.83946668,0.00014373,2]
[407649799,1772614241197,-500.0,0.00014373,2]
[407649800,1772614241207,-226.44919587,0.00014373,2]
[407649802,1772614241216,-501.72819961,0.00014373,2]
[407649804,1772614241225,-500.0,0.00014373,2]
[407649805,1772614241235,-501.56276804,0.00014373,2]
[407649806,1772614241245,-500.0,0.00014373,2]
[407649807,1772614241255,-10000.0,0.000145,2]
[407649808,1772614241265,-536.93,0.00014538,2]
[407649809,1772614241274,-5686.0945738,0.00014609,2]
[407649810,1772614241284,-3431.20494075,0.00014609,2]
[407649811,1772614241294,-1600.0,0.00014752,2]
[407649812,1772614241303,-281.43286606,0.00014791,2]
[407649813,1772614241312,-536.93,0.00014812,2]
[407649814,1772614241322,-192.67858373,0.00014918,2]
[407649815,1772614241332,-902.37041004,0.00014921,2]
[407649816,1772614241342,-532.85842952,0.00014921,2]
[407649817,1772614241352,-495.32588448,0.00014921,2]
[407649818,1772614241362,-1003.94970501,0.00014921,2]
[407649819,1772614241371,-1000.0,0.00014921,2]
[407649820,1772614241381,-1000.0,0.00014921,2]
[407649821,1772614241390,-10000.0,0.00015,2]
[407649822,1772614241400,-5686.0945738,0.00015021,2]
[407649823,1772614241410,-3431.20494075,0.00015021,2]
[407649824,1772614241419,-192.46,0.00015068,2]
[407649825,1772614241429,-536.93,0.00015086,2]
[407649826,1772614241439,-236.0,0.00015273,2]
[407649827,1772614241448,-281.43286606,0.00015309,2]
[407649828,1772614241457,-536.93,0.0001536,2]
[407649829,1772614241467,-5686.0945738,0.00015432,2]
[407649830,1772614241476,-3431.20494075,0.00015432,2]
[407649831,1772614241486,-1003.37044262,0.00015468,2]
[407649832,1772614241495,-1500.0,0.00015468,2]
[407649833,1772614241505,-500.0,0.00015479,2]
[407649834,1772614241515,-10000.0,0.000155,2]
[407649835,1772614241525,-151.0,0.0001563,2]
[407649836,1772614241536,-174.61919141,0.0001563,2]
[407649837,1772614241546,-693.3919763,0.0001563,2]
[407649838,1772614241555,-536.97990973,0.00015634,2]
[407649839,1772614241565,-192.67858373,0.00015664,2]
[407649840,1772614241575,-151.0,0.00015685,2]
[407649841,1772614241584,-719.04747942,0.00015685,2]
[407649842,1772614241595,-351.25248798,0.00015718,2]
[407649843,1772614241605,-154.76383697,0.0001574,2]
[407649844,1772614241614,-745.65223616,0.0001574,2]
[407649845,1772614241625,-773.2413689,0.00015795,2]
[407649846,1772614241635,-5686.0945738,0.00015843,2]
[407649847,1772614241645,-3431.20494075,0.00015843,2]
[407649848,1772614241654,-801.85129955,0.0001585,2]
[407649849,1772614241664,-2000.0,0.0001589,2]
[407649850,1772614241673,-831.51979763,0.00015905,2]
[407649851,1772614241683,-862.28603014,0.0001596,2]
[407649852,1772614241692,-10000.0,0.00016,2]
[407649853,1772614241702,-894.19061326,0.00016015,2]
[407649854,1772614241711,-259.68647952,0.0001605,2]
[407649855,1772614241720,-927.27566595,0.0001607,2]
[407649856,1772614241730,-961.58486559,0.00016125,2]
[407649857,1772614241745,-181.08010149,0.00016178,2]
[407649858,1772614241755,-997.16350561,0.0001618,2]
[407649859,1772614241765,-5686.0945738,0.00016255,2]
[407649860,1772614241775,-3431.20494075,0.00016255,2]
[407649861,1772614241788,-1600.0,0.00016391,2]
[407649862,1772614241798,-192.67858373,0.00016409,2]
[407649863,1772614241807,-192.46,0.00016438,2]
[407649864,1772614241817,-10000.0,0.000165,2]
[407649865,1772614241826,-5686.0945738,0.00016666,2]
[407649866,1772614241836,-3431.20494075,0.00016666,2]
[407649867,1772614241849,-4469.0,0.00016691,2]
[407649868,1772614241859,-187.78006525,0.00016726,2]
[407649869,1772614241868,-492.2,0.0001679,2]
[407649870,1772614241878,-179.37246457,0.00016901,2]
[407649871,1772614241889,-9999.99,0.00016922,2]
[407649872,1772614241899,-150.99,0.00016922,2]
[407649873,1772614241909,-3644.18,0.00016922,2]
[407649874,1772614241921,-299.99,0.00016922,4]
[407649875,1772614241931,-999.99,0.00016922,2]
[407649876,1772614241941,-500.0,0.00016973,2]
[407649877,1772614241951,-500.2152248,0.00016973,2]
[407649878,1772614241960,-500.0,0.00016973,2]
[407649879,1772614241970,-500.0,0.00016973,2]
[407649880,1772614241979,-197.194,0.00016973,2]
[407649881,1772614241989,-1033.471,0.00016973,2]
[407649882,1772614241998,-500.0,0.00016999,2]
[407649883,1772614242007,-10000.0,0.00017,2]
[407649884,1772614242017,-1341.0,0.00017001,2]
[407649885,1772614242027,-3501.0,0.00017001,2]
[407649886,1772614242038,-1041.0,0.00017001,2]
[407649887,1772614242047,-619.0,0.00017001,2]
[407649888,1772614242057,-1278.0,0.00017001,2]
[407649889,1772614242066,-200.0,0.00017001,2]
[407649890,1772614242076,-413.0,0.00017001,2]
[407649891,1772614242085,-150.128,0.00017001,2]
[407649892,1772614242095,-171.744,0.00017001,2]
[407649893,1772614242105,-150.061,0.00017001,2]
[407649894,1772614242114,-5987.0,0.00017001,2]